fUST/lending_fUST_20240828
["ID","MTS","AMOUNT","RATE_DAILY","PERIOD"]
[336452059,1724832643836,-500.0,0.00011506,2]
[336452062,1724832643847,-500.0,0.00011506,2]
[336452064,1724832643858,-500.0,0.00011506,2]
[336452066,1724832643868,-500.0,0.00011506,2]
[336452068,1724832643879,-500.0,0.00011506,2]
[336452070,1724832643890,-634.71572538,0.00011506,2]
[336452072,1724832643900,-500.0,0.00011506,2]
[336452074,1724832643910,-500.0,0.00011506,2]
[336452076,1724832643920,-500.0,0.00011506,2]
[336452078,1724832643931,-500.0,0.00011506,2]
[336452080,1724832643942,-497.53983266,0.00011506,2]
[336452082,1724832643954,-500.0,0.00011506,2]
[336452084,1724832643964,-847.13,0.00011506,2]
[336452086,1724832643974,-501.71882205,0.00011506,2]
[336452088,1724832643985,-2536.43,0.00011506,2]
[336452091,1724832643996,-500.0,0.00011506,2]
[336452093,1724832644006,-500.0,0.00011506,2]
[336452095,1724832644016,-500.0,0.00011506,2]
[336452097,1724832644027,-500.0,0.00011506,2]
[336452099,1724832644038,-500.0,0.00011506,2]
[336452101,1724832644048,-500.0,0.00011506,2]
[336452103,1724832644058,-500.0,0.00011506,2]
[336452105,1724832644068,-500.0,0.00011506,2]
[336452107,1724832644077,-222.59866188,0.00011506,2]
[336452109,1724832644089,-407.38,0.00011506,2]
[336452111,1724832644100,-826.86,0.00011506,2]
[336452114,1724832644111,-500.0,0.00011506,2]
[336452116,1724832644122,-500.0,0.00011506,2]
[336452117,1724832644133,-500.0,0.00011506,2]
[336452120,1724832644143,-502.81174126,0.00011506,2]
[336452122,1724832644154,-500.0,0.00011506,2]
[336452124,1724832644164,-500.0,0.00011506,2]
[336452126,1724832644174,-500.0,0.00011506,2]
[336452128,1724832644184,-2039.59,0.00011506,2]
[336452130,1724832644202,-500.0,0.00011506,2]
[336452133,1724832644214,-500.0,0.00011506,2]
[336452135,1724832644224,-500.0,0.00011506,2]
[336452151,1724832644369,-500.0,0.00011506,2]
[336452153,1724832644379,-500.0,0.00011506,2]
[336452155,1724832644389,-500.0,0.00011506,2]
[336452157,1724832644399,-500.0,0.00011506,2]
[336452159,1724832644409,-500.0,0.00011506,2]
[336452161,1724832644418,-500.0,0.00011506,2]
[336452163,1724832644429,-500.0,0.00011506,2]
[336452165,1724832644439,-500.0,0.00011506,2]
[336452167,1724832644449,-500.0,0.00011506,2]
[336452169,1724832644460,-500.0,0.00011521,2]
[336452171,1724832644471,-500.0,0.00011573,2]
[336452174,1724832644484,-504.92319504,0.00011573,2]
[336452176,1724832644496,-500.30324367,0.00011573,2]
[336452178,1724832644505,-500.0,0.00011573,2]
[336452180,1724832644515,-500.0,0.00011779,2]
[336452182,1724832644525,-500.0,0.00011779,2]
[336452184,1724832644535,-271.51082882,0.0001178,2]
[336452186,1724832644545,-639.53935746,0.0001178,2]
[336452188,1724832644556,-500.0,0.0001178,2]
[336452190,1724832644566,-500.0,0.0001178,2]
[336452192,1724832644575,-500.0,0.0001178,2]
[336452194,1724832644585,-500.0,0.0001178,2]
[336452196,1724832644595,-500.0,0.0001178,2]
[336452198,1724832644604,-500.0,0.0001178,2]
[336452200,1724832644615,-500.0,0.0001178,2]
[336452203,1724832644625,-496.60587818,0.0001178,2]
[336452205,1724832644634,-500.0,0.0001178,2]
[336452206,1724832644645,-500.0,0.0001178,2]
[336452208,1724832644656,-365.6,0.0001178,2]
[336452209,1724832644666,-500.0,0.0001178,2]
[336452210,1724832644675,-500.0,0.0001178,2]
[336452211,1724832644684,-500.0,0.0001178,2]
[336452212,1724832644693,-637.21609299,0.0001178,2]
[336452213,1724832644703,-500.0,0.0001178,2]
[336452214,1724832644713,-500.0,0.0001178,2]
[336452215,1724832644722,-500.0,0.0001178,2]
[336452216,1724832644731,-312.51121526,0.0001178,2]
[336452217,1724832644740,-569.15044407,0.0001178,2]
[336452218,1724832644749,-276.73330694,0.0001178,2]
[336452219,1724832644762,-500.0,0.0001178,2]
[336452220,1724832644773,-500.0,0.0001178,2]
[336452222,1724832644782,-500.0,0.0001178,2]
[336452224,1724832644791,-500.0,0.0001178,2]
[336452226,1724832644801,-500.0,0.0001178,2]
[336452228,1724832644816,-471.15,0.0001178,2]
[336452229,1724832644827,-500.0,0.0001178,2]
[336452230,1724832644837,-1114.59,0.0001178,2]
[336452231,1724832644847,-500.0,0.0001178,2]
[336452232,1724832644857,-500.0,0.0001178,2]
[336452233,1724832644867,-2211.21,0.0001178,2]
[336452234,1724832644878,-500.0,0.0001178,2]
[336452235,1724832644889,-806.41,0.0001178,2]
[336452236,1724832644898,-509.08,0.0001178,2]
[336452237,1724832644910,-282.82187944,0.0001178,2]
[336452238,1724832644921,-245.47441959,0.0001178,2]
[336452239,1724832644934,-812.71,0.0001178,2]
[336452240,1724832644944,-5829.57,0.0001178,2]
[336452241,1724832644957,-500.0,0.0001178,2]
[336452242,1724832644968,-500.0,0.0001178,2]
[336452243,1724832644979,-500.0,0.0001178,2]
[336452244,1724832644991,-500.0,0.0001178,2]
[336452245,1724832645001,-534.72,0.0001178,2]
[336452246,1724832645011,-500.0,0.0001178,2]
[336452247,1724832645021,-500.0,0.0001178,2]
[336452248,1724832645034,-500.0,0.0001178,2]
[336452249,1724832645043,-213.12444987,0.0001178,2]
[336452250,1724832645053,-500.0,0.0001178,2]
[336452251,1724832645062,-504.15819514,0.0001178,2]
[336452252,1724832645072,-500.0,0.0001178,2]
[336452253,1724832645090,-500.0,0.0001178,2]
[336452254,1724832645099,-500.0,0.0001178,2]
[336452255,1724832645109,-500.0,0.0001178,2]
[336452256,1724832645118,-500.0,0.0001178,2]
[336452257,1724832645129,-500.0,0.0001178,2]
[336452258,1724832645138,-500.0,0.0001178,2]
[336452259,1724832645148,-500.0,0.0001178,2]
[336452260,1724832645157,-500.0,0.0001178,2]
[336452261,1724832645168,-500.0,0.0001178,2]
[336452262,1724832645178,-500.0,0.0001178,2]
[336452263,1724832645188,-506.61,0.0001178,2]
[336452264,1724832645197,-500.0,0.0001178,2]
[336452265,1724832645208,-1419.74,0.0001178,2]
[336452266,1724832645217,-500.0,0.0001178,2]
[336452267,1724832645227,-500.0,0.0001178,2]
[336452268,1724832645236,-500.0,0.0001178,2]
[336452269,1724832645246,-500.0,0.0001178,2]
[336452270,1724832645256,-500.0,0.0001178,2]
[336452271,1724832645265,-500.0,0.0001178,2]
[336452272,1724832645275,-500.0,0.0001178,2]
[336452273,1724832645285,-500.0,0.0001178,2]
[336452274,1724832645295,-500.0,0.0001178,2]
[336452275,1724832645305,-500.0,0.0001178,2]
[336452276,1724832645315,-847.13,0.0001178,2]
[336452277,1724832645324,-2536.43,0.0001178,2]
[336452278,1724832645335,-500.0,0.0001178,2]
[336452279,1724832645345,-500.0,0.0001178,2]
[336452280,1724832645356,-500.0,0.0001178,2]
[336452281,1724832645366,-500.0,0.0001178,2]
[336452282,1724832645376,-500.0,0.0001178,2]
[336452283,1724832645385,-500.0,0.0001178,2]
[336452284,1724832645395,-500.0,0.0001178,2]
[336452285,1724832645405,-500.0,0.0001178,2]
[336452286,1724832645415,-826.86,0.0001178,2]
[336452287,1724832645425,-500.0,0.0001178,2]
[336452288,1724832645435,-500.0,0.0001178,2]
[336452289,1724832645447,-392.2406259,0.0001178,2]
[336452290,1724832645467,-500.0,0.0001178,2]
[336452291,1724832645478,-500.0,0.0001178,2]
[336452292,1724832645489,-500.0,0.0001178,2]
[336452293,1724832645498,-2039.59,0.0001178,2]
[336452294,1724832645510,-500.0,0.0001178,2]
[336452295,1724832645520,-500.0,0.0001178,2]
[336452296,1724832645530,-500.0,0.0001178,2]
[336452297,1724832645540,-500.0,0.0001178,2]
[336452299,1724832645549,-500.0,0.0001178,2]
[336452300,1724832645559,-500.0,0.0001178,2]
[336452301,1724832645568,-500.0,0.0001178,2]
[336452302,1724832645579,-500.0,0.0001178,2]
[336452303,1724832645589,-500.0,0.0001178,2]
[336452304,1724832645599,-487.09,0.0001178,2]
[336452305,1724832645609,-500.0,0.0001178,2]
[336452306,1724832645619,-500.0,0.00011821,2]
[336452307,1724832645630,-757.83880799,0.00011821,2]
[336452308,1724832645643,-19464.53522936,0.000119,5]
[336452309,1724832645655,-679043.67779262,0.000119,2]
[336452310,1724832645843,-470.49647572,0.000119,2]
[336452311,1724832645870,-1598.45606266,0.000119,2]
[336452312,1724832645880,-2718.3188552,0.00011922,2]
[336452313,1724832645890,-253.30286873,0.00011987,2]
[336452314,1724832645901,-9649.55825762,0.00011999,2]
[336452315,1724832645913,-5872.25478656,0.00012023,2]
[336452316,1724832645924,-500.0,0.00012053,2]
[336452317,1724832645934,-500.0,0.00012053,2]
[336452318,1724832645944,-303.41579405,0.00012054,2]
[336452319,1724832645955,-500.0,0.00012054,2]
[336452320,1724832645964,-500.0,0.00012054,2]
[336452321,1724832645974,-349.73,0.00012054,2]
[336452322,1724832645984,-500.0,0.00012054,2]
[336452323,1724832645995,-500.0,0.00012054,2]
[336452324,1724832646005,-500.0,0.00012054,2]
[336452325,1724832646016,-331.62675297,0.00012054,2]
[336452326,1724832646027,-500.0,0.00012054,2]
[336452327,1724832646039,-500.0,0.00012054,2]
[336452328,1724832646048,-500.0,0.00012054,2]
[336452329,1724832646058,-500.0,0.00012054,2]
[336452330,1724832646068,-166.74,0.00012054,2]
[336452331,1724832646078,-500.0,0.00012054,2]
[336452332,1724832646088,-500.0,0.00012054,2]
[336452333,1724832646097,-500.0,0.00012054,2]
[336452334,1724832646107,-500.0,0.00012054,2]
[336452335,1724832646116,-342.91772898,0.00012054,2]
[336452336,1724832646128,-500.0,0.00012054,2]
[336452337,1724832646138,-500.0,0.00012054,2]
[336452338,1724832646147,-1114.59,0.00012054,2]
[336452339,1724832646157,-500.0,0.00012054,2]
[336452340,1724832646166,-500.0,0.00012054,2]
[336452341,1724832646176,-2211.21,0.00012054,2]
[336452342,1724832646187,-500.0,0.00012054,2]
[336452343,1724832646198,-806.41,0.00012054,2]
[336452344,1724832646209,-509.08,0.00012054,2]
[336452345,1724832646221,-812.71,0.00012054,2]
[336452346,1724832646230,-5829.57,0.00012054,2]
[336452347,1724832646240,-500.0,0.00012054,2]
[336452348,1724832646252,-500.0,0.00012054,2]
[336452349,1724832646263,-500.0,0.00012054,2]
[336452350,1724832646273,-500.0,0.00012054,2]
[336452351,1724832646284,-534.72,0.00012054,2]
[336452352,1724832646293,-500.0,0.00012054,2]
[336452353,1724832646303,-500.0,0.00012054,2]
[336452355,1724832646313,-500.0,0.00012054,2]
[336452357,1724832646324,-500.0,0.00012054,2]
[336452359,1724832646334,-500.0,0.00012054,2]
[336452360,1724832646343,-500.0,0.00012054,2]
[336452362,1724832646352,-500.0,0.00012054,2]
[336452363,1724832646364,-500.0,0.00012054,2]
[336452364,1724832646374,-500.0,0.00012054,2]
[336452365,1724832646384,-500.0,0.00012054,2]
[336452366,1724832646393,-500.0,0.00012054,2]
[336452367,1724832646403,-500.0,0.00012054,2]
[336452368,1724832646413,-506.61,0.00012054,2]
[336452369,1724832646424,-504.26473185,0.00012054,2]
[336452370,1724832646435,-1419.74,0.00012054,2]
[336452373,1724832646445,-274.12,0.00012054,2]
[336452374,1724832646457,-500.0,0.00012054,2]
[336452376,1724832646468,-500.0,0.00012054,2]
[336452377,1724832646477,-500.0,0.00012054,2]
[336452378,1724832646487,-500.0,0.00012054,2]
[336452379,1724832646498,-500.0,0.00012054,2]
[336452380,1724832646509,-500.0,0.00012054,2]
[336452381,1724832646519,-500.0,0.00012054,2]
[336452382,1724832646528,-847.13,0.00012054,2]
[336452383,1724832646538,-2536.43,0.00012054,2]
[336452384,1724832646548,-500.0,0.00012054,2]
[336452385,1724832646557,-500.0,0.00012054,2]
[336452386,1724832646571,-500.0,0.00012054,2]
[336452387,1724832646582,-301.55009696,0.00012054,2]
[336452388,1724832646592,-500.0,0.00012054,2]
[336452389,1724832646602,-826.86,0.00012054,2]
[336452390,1724832646613,-500.0,0.00012054,2]
[336452391,1724832646624,-500.0,0.00012054,2]
[336452392,1724832646636,-500.0,0.00012054,2]
[336452393,1724832646645,-446.83881332,0.00012054,2]
[336452394,1724832646655,-1760.77414279,0.00012054,2]
[336452395,1724832646681,-250.50408493,0.0001178,2]
[336452396,1724832646913,-500.0,0.00010958,2]
[336452397,1724832646922,-249.49591507,0.0001178,2]
[336452398,1724832646932,-278.81585721,0.00012054,2]
[336452399,1724832646942,-213.43955469,0.00012054,2]
[336452400,1724832646954,-183.49044531,0.00012054,2]
[336452401,1724832646963,-500.0,0.00012054,2]
[336452402,1724832646973,-500.0,0.00012054,2]
[336452403,1724832646982,-500.0,0.00012054,2]
[336452404,1724832646992,-500.0,0.00012054,2]
[336452405,1724832647001,-500.0,0.00012054,2]
[336452406,1724832647011,-500.0,0.00012054,2]
[336452407,1724832647020,-500.0,0.00012054,2]
[336452408,1724832647029,-500.0,0.00012054,2]
[336452409,1724832647038,-500.0,0.00012054,2]
[336452410,1724832647047,-1000.0,0.00012121,2]
[336452411,1724832647057,-363.23059045,0.00012121,2]
[336452412,1724832647067,-4372.18459631,0.00012163,2]
[336452413,1724832647076,-500.0,0.00012327,2]
[336452414,1724832647085,-500.0,0.00012328,2]
[336452415,1724832647095,-500.0,0.00012328,2]
[336452416,1724832647104,-313.78125659,0.00012328,2]
[336452417,1724832647113,-500.0,0.00012328,2]
[336452418,1724832647122,-500.0,0.00012328,2]
[336452419,1724832647134,-500.0,0.00012328,2]
[336452420,1724832647144,-500.0,0.00012328,2]
[336452421,1724832647153,-500.0,0.00012328,2]
[336452422,1724832647162,-500.0,0.00012328,2]
[336452423,1724832647171,-500.0,0.00012328,2]
[336452424,1724832647180,-500.0,0.00012328,2]
[336452425,1724832647189,-1114.59,0.00012328,2]
[336452426,1724832647198,-500.0,0.00012328,2]
[336452427,1724832647209,-500.0,0.00012328,2]
[336452428,1724832647219,-1269.94129589,0.00012328,2]
[336452429,1724832647235,-941.26870411,0.00012328,2]
[336452430,1724832647244,-500.0,0.00012328,2]
[336452431,1724832647254,-806.41,0.00012328,2]
[336452432,1724832647263,-812.71,0.00012328,2]
[336452433,1724832647273,-1884.80084403,0.00012328,2]
[336452434,1724832647293,-278.49140331,0.00012328,2]
[336452435,1724832647304,-3666.27775266,0.00012328,2]
[336452436,1724832647313,-500.0,0.00012328,2]
[336452437,1724832647323,-500.0,0.00012328,2]
[336452438,1724832647332,-500.0,0.00012328,2]
[336452439,1724832647342,-500.0,0.00012328,2]
[336452440,1724832647351,-534.72,0.00012328,2]
[336452441,1724832647493,-500.0,0.00012328,2]
[336452442,1724832647503,-500.0,0.00012328,2]
[336452443,1724832647514,-500.0,0.00012328,2]
[336452444,1724832647524,-500.0,0.00012328,2]
[336452445,1724832647534,-500.0,0.00012328,2]
[336452446,1724832647546,-500.0,0.00012328,2]
[336452447,1724832647555,-500.0,0.00012328,2]
[336452448,1724832647565,-500.0,0.00012328,2]
[336452449,1724832647576,-634.70773225,0.00012328,2]
[336452450,1724832647587,-554.37,0.00012328,2]
[336452451,1724832647598,-267.42888694,0.00012328,2]
[336452452,1724832647608,-506.61,0.00012328,2]
[336452453,1724832647618,-1419.74,0.00012328,2]
[336452454,1724832647630,-500.0,0.00012328,2]
[336452455,1724832647640,-500.0,0.00012328,2]
[336452456,1724832647650,-500.0,0.00012328,2]
[336452457,1724832647660,-500.0,0.00012328,2]
[336452458,1724832647670,-500.0,0.00012328,2]
[336452459,1724832647679,-500.0,0.00012328,2]
[336452460,1724832647689,-500.0,0.00012328,2]
[336452461,1724832647698,-847.13,0.00012328,2]
[336452462,1724832647708,-2536.43,0.00012328,2]
[336452463,1724832647718,-500.0,0.00012328,2]
[336452464,1724832647727,-294.02,0.00012328,2]
[336452465,1724832647737,-190.35,0.00012328,2]
[336452466,1724832647747,-826.86,0.00012328,2]
[336452467,1724832647756,-500.0,0.00012328,2]
[336452468,1724832647766,-500.0,0.00012328,2]
[336452469,1724832647775,-500.0,0.00012328,2]
[336452470,1724832647785,-2039.59,0.00012328,2]
[336452471,1724832647794,-500.0,0.00012328,2]
[336452472,1724832647805,-500.0,0.00012328,2]
[336452473,1724832647816,-500.0,0.00012328,2]
[336452474,1724832647826,-500.0,0.00012328,2]
[336452475,1724832647835,-500.0,0.00012328,2]
[336452476,1724832647845,-500.0,0.00012328,2]
[336452477,1724832647856,-500.0,0.00012328,2]
[336452478,1724832647866,-500.0,0.00012328,2]
[336452479,1724832647875,-8852.09163784,0.00012356,2]
[336452480,1724832647887,-553.12119149,0.00012356,2]
[336452481,1724832647897,-600.0,0.00012389,2]
[336452482,1724832647908,-308.8390755,0.00012436,2]
[336452483,1724832647918,-500.0,0.00012601,2]
[336452484,1724832647927,-500.0,0.00012602,2]
[336452485,1724832647936,-500.0,0.00012602,2]
[336452486,1724832647945,-500.0,0.00012602,2]
[336452487,1724832647955,-500.0,0.00012602,2]
[336452488,1724832647964,-500.0,0.00012602,2]
[336452489,1724832647973,-500.0,0.00012602,2]
[336452490,1724832647983,-500.0,0.00012602,2]
[336452491,1724832647993,-500.0,0.00012602,2]
[336452492,1724832648002,-500.0,0.00012602,2]
[336452493,1724832648011,-500.0,0.00012602,2]
[336452494,1724832648020,-1114.59,0.00012602,2]
[336452495,1724832648030,-500.0,0.00012602,2]
[336452496,1724832648039,-500.0,0.00012602,2]
[336452497,1724832648049,-2211.21,0.00012602,2]
[336452498,1724832648059,-500.0,0.00012602,2]
[336452499,1724832648069,-806.41,0.00012602,2]
[336452500,1724832648078,-812.71,0.00012602,2]
[336452501,1724832648088,-5829.57,0.00012602,2]
[336452502,1724832648097,-202.38992962,0.00012602,2]
[336452503,1724832648107,-500.0,0.00012602,2]
[336452504,1724832648116,-500.0,0.00012602,2]
[336452505,1724832648125,-295.02,0.00012602,2]
[336452506,1724832648136,-534.72,0.00012602,2]
[336452507,1724832648145,-432.77902595,0.00012602,2]
[336452508,1724832648155,-500.0,0.00012602,2]
[336452509,1724832648164,-500.0,0.00012602,2]
[336452510,1724832648175,-500.0,0.00012602,2]
[336452511,1724832648185,-500.0,0.00012602,2]
[336452512,1724832648195,-500.0,0.00012602,2]
[336452513,1724832648204,-500.0,0.00012602,2]
[336452514,1724832648215,-500.0,0.00012602,2]
[336452515,1724832648225,-506.61,0.00012602,2]
[336452516,1724832648235,-1419.74,0.00012602,2]
[336452518,1724832648244,-214.2,0.00012602,2]
[336452519,1724832648255,-500.0,0.00012602,2]
[336452521,1724832648266,-500.0,0.00012602,2]
[336452522,1724832648276,-500.0,0.00012602,2]
[336452523,1724832648286,-612.1324918,0.00012602,2]
[336452524,1724832648295,-500.0,0.00012602,2]
[336452525,1724832648305,-847.13,0.00012602,2]
[336452526,1724832648316,-2536.43,0.00012602,2]
[336452527,1724832648326,-217.75,0.00012602,2]
[336452528,1724832648337,-826.86,0.00012602,2]
[336452529,1724832648347,-500.0,0.00012602,2]
[336452530,1724832648357,-500.0,0.00012602,2]
[336452531,1724832648367,-500.0,0.00012602,2]
[336452532,1724832648377,-2039.59,0.00012602,2]
[336452533,1724832648387,-500.0,0.00012602,2]
[336452534,1724832648397,-500.0,0.00012602,2]
[336452535,1724832648407,-634.31519294,0.00012602,2]
[336452536,1724832648417,-500.0,0.00012602,2]
[336452537,1724832648428,-597.91,0.00012602,2]
[336452538,1724832648438,-500.0,0.00012602,2]
[336452539,1724832648447,-599.66652786,0.00012602,2]
[336452540,1724832648458,-5872.25478656,0.00012639,2]
[336452541,1724832648468,-6468.42503018,0.00012782,2]
[336452542,1724832648477,-154.81078475,0.00012782,2]
[336452543,1724832648486,-811.47145884,0.00012782,2]
[336452544,1724832648496,-500.0,0.00012875,2]
[336452545,1724832648507,-500.0,0.00012876,2]
[336452546,1724832648517,-500.0,0.00012876,2]
[336452547,1724832648528,-500.0,0.00012876,2]
[336452548,1724832648538,-500.0,0.00012876,2]
[336452549,1724832648549,-500.0,0.00012876,2]
[336452550,1724832648558,-324.03,0.00012876,2]
[336452551,1724832648568,-1114.59,0.00012876,2]
[336452552,1724832648579,-500.0,0.00012876,2]
[336452553,1724832648589,-500.0,0.00012876,2]
[336452554,1724832648600,-2211.21,0.00012876,2]
[336452555,1724832648611,-500.0,0.00012876,2]
[336452556,1724832648622,-806.41,0.00012876,2]
[336452557,1724832648631,-812.71,0.00012876,2]
[336452558,1724832648641,-5829.57,0.00012876,2]
[336452559,1724832648651,-500.0,0.00012876,2]
[336452560,1724832648662,-500.0,0.00012876,2]
[336452561,1724832648671,-534.72,0.00012876,2]
[336452562,1724832648682,-500.0,0.00012876,2]
[336452563,1724832648692,-500.0,0.00012876,2]
[336452564,1724832648703,-500.0,0.00012876,2]
[336452565,1724832648718,-500.0,0.00012876,2]
[336452566,1724832648727,-500.0,0.00012876,2]
[336452567,1724832648737,-500.0,0.00012876,2]
[336452568,1724832648746,-500.0,0.00012876,2]
[336452569,1724832648755,-506.61,0.00012876,2]
[336452570,1724832648764,-1419.74,0.00012876,2]
[336452571,1724832648773,-521.63,0.00012876,2]
[336452572,1724832648783,-500.0,0.00012876,2]
[336452573,1724832648792,-500.0,0.00012876,2]
[336452574,1724832648802,-500.0,0.00012876,2]
[336452575,1724832648815,-847.13,0.00012876,2]
[336452576,1724832648826,-2536.43,0.00012876,2]
[336452577,1724832648836,-826.86,0.00012876,2]
[336452578,1724832648846,-154.29542438,0.00012876,2]
[336452579,1724832648857,-500.0,0.00012876,2]
[336452580,1724832648867,-500.0,0.00012876,2]
[336452581,1724832648876,-2039.59,0.00012876,2]
[336452582,1724832648888,-500.0,0.00012876,2]
[336452583,1724832648898,-537.98,0.00012876,2]
[336452584,1724832648907,-500.0,0.00012876,2]
[336452585,1724832648917,-500.0,0.00012876,2]
[336452586,1724832648926,-521.48215482,0.00012898,2]
[336452587,1724832648936,-166.89815385,0.00012934,2]
[336452588,1724832648946,-221.8034801,0.00012934,2]
[336452589,1724832648957,-751.97281741,0.00012939,2]
[336452590,1724832648966,-493.77204427,0.00012971,2]
[336452591,1724832648976,-570.08379393,0.00012971,2]
[336452592,1724832648987,-157.24081456,0.00012985,2]
[336452593,1724832648996,-157.24081456,0.00012985,2]
[336452594,1724832649007,-175.84774053,0.00012989,2]
[336452595,1724832649017,-236.96619364,0.00012991,2]
[336452596,1724832649028,-600.0,0.00012998,2]
[336452597,1724832649037,-150.112233,0.00013,2]
[336452598,1724832649047,-150.112233,0.00013,2]
[336452599,1724832649056,-863.27824545,0.00013,2]
[336452600,1724832649066,-500.0,0.00013019,2]
[336452601,1724832649076,-154.55950541,0.00013025,2]
[336452602,1724832649085,-154.56721181,0.00013051,2]
[336452603,1724832649095,-500.0,0.00013149,2]
[336452604,1724832649106,-500.0,0.0001315,2]
[336452605,1724832649116,-500.0,0.0001315,2]
[336452606,1724832649128,-500.0,0.0001315,2]
[336452607,1724832649138,-1114.59,0.0001315,2]
[336452608,1724832649149,-500.0,0.0001315,2]
[336452609,1724832649158,-500.0,0.0001315,2]
[336452610,1724832649168,-2211.21,0.0001315,2]
[336452611,1724832649177,-500.0,0.0001315,2]
[336452612,1724832649186,-806.41,0.0001315,2]
[336452613,1724832649197,-812.71,0.0001315,2]
[336452614,1724832649209,-5829.57,0.0001315,2]
[336452615,1724832649219,-174.75,0.0001315,2]
[336452616,1724832649229,-500.0,0.0001315,2]
[336452617,1724832649238,-534.72,0.0001315,2]
[336452618,1724832649248,-500.0,0.0001315,2]
[336452619,1724832649260,-500.0,0.0001315,2]
[336452620,1724832649269,-500.0,0.0001315,2]
[336452621,1724832649279,-500.0,0.0001315,2]
[336452622,1724832649289,-358.33,0.0001315,2]
[336452623,1724832649298,-500.0,0.0001315,2]
[336452624,1724832649308,-647.35,0.0001315,2]
[336452625,1724832649320,-506.61,0.0001315,2]
[336452626,1724832649329,-1419.74,0.0001315,2]
[336452627,1724832649341,-500.0,0.0001315,2]
[336452628,1724832649351,-500.0,0.0001315,2]
[336452629,1724832649361,-463.49740919,0.0001315,2]
[336452630,1724832649371,-847.13,0.0001315,2]
[336452631,1724832649381,-2536.43,0.0001315,2]
[336452632,1724832649391,-826.86,0.0001315,2]
[336452633,1724832649401,-447.90477535,0.0001315,2]
[336452634,1724832649410,-229.64364103,0.0001315,2]
[336452635,1724832649420,-2039.59,0.0001315,2]
[336452636,1724832649430,-500.0,0.0001315,2]
[336452637,1724832649439,-371.08219005,0.0001315,2]
[336452638,1724832649450,-500.0,0.0001315,2]
[336452639,1724832649460,-5872.25478656,0.00013256,2]
[336452640,1724832649470,-500.0,0.00013423,2]
[336452641,1724832649480,-500.0,0.00013424,2]
[336452642,1724832649490,-175.39,0.00013424,2]
[336452643,1724832649499,-500.0,0.00013424,2]
[336452644,1724832649509,-1114.59,0.00013424,2]
[336452645,1724832649520,-500.0,0.00013424,2]
[336452646,1724832649529,-500.0,0.00013424,2]
[336452647,1724832649539,-2211.21,0.00013424,2]
[336452648,1724832649549,-501.38354752,0.00013424,2]
[336452649,1724832649558,-806.41,0.00013424,2]
[336452650,1724832649568,-812.71,0.00013424,2]
[336452651,1724832649578,-5829.57,0.00013424,2]
[336452652,1724832649588,-500.0,0.00013424,2]
[336452653,1724832649598,-534.72,0.00013424,2]
[336452654,1724832649607,-500.0,0.00013424,2]
[336452655,1724832649618,-524.22,0.00013424,2]
[336452656,1724832649628,-500.0,0.00013424,2]